bitfinex/quotes_SOLUSD_20251204
["timestamp","ask_amount","ask_price","bid_price","bid_amount"]
[1764884172043,7.84435019,139.58,139.55,7.83586972]
[1764884172246,3.67096328,139.6,139.55,10.826833]
[1764884172453,3.67096328,139.6,139.56,0.67]
[1764884173555,10.83449976,139.6,139.56,7.83509733]
[1764884173738,10.15449976,139.6,139.55,7.1656612]
[1764884173943,10.15449976,139.6,139.55,7.8756612]
[1764884173944,3.71096328,139.59,139.55,7.8756612]
[1764884174140,0.72,139.59,139.56,0.71]
[1764884175782,7.88385195,139.59,139.56,0.71]
[1764884176761,2.99096328,139.6,139.56,7.87506863]
[1764884176964,110.58,139.61,139.57,2.99096328]
[1764884177267,102.7,139.61,139.57,3.70096328]
[1764884177431,102.7,139.61,139.58,0.71]
[1764884177856,102.7,139.61,139.58,7.87415234]
[1764884178070,102.7,139.61,139.58,10.86511562]
[1764884178245,10.872512,139.64,139.59,3.70096328]
[1764884178751,10.872512,139.64,139.6,0.71]
[1764884178949,2.99096328,139.61,139.58,7.16415234]
[1764884179153,2.99096328,139.62,139.58,7.87415234]
[1764884179362,3.71096328,139.62,139.58,7.87415234]
[1764884179854,10.87356595,139.62,139.59,0.71]
[1764884180376,7.88260267,139.62,139.59,0.71]
[1764884180678,3.71096328,139.64,139.59,3.70096328]
[1764884180970,0.72,139.63,139.59,3.70096328]
[1764884181466,0.72,139.63,139.6,0.71]
[1764884181645,0.72,139.63,139.6,7.87331728]
[1764884188364,0.72,139.63,139.58,3.70096328]
[1764884188365,10.87276537,139.63,139.58,3.70096328]
[1764884188542,10.87276537,139.63,139.58,10.86501793]
[1764884188744,0.72,139.62,139.59,7.87380669]
[1764884188960,10.15276537,139.63,139.59,7.87380669]
[1764884189150,10.15276537,139.63,139.59,7.16380669]
[1764884189151,10.87276537,139.63,139.59,7.16380669]
[1764884189354,10.87276537,139.63,139.59,7.87380669]
[1764884189668,0.72,139.62,139.59,7.87380669]
[1764884190472,7.88230721,139.62,139.59,7.87380669]
[1764884190668,7.88230721,139.62,139.59,0.71]
[1764884190851,2.99096328,139.63,139.6,0.71]
[1764884190852,7.16203112,139.63,139.6,0.71]
[1764884191168,7.88,139.65,139.61,2.99096328]
[1764884191345,8.6,139.65,139.61,2.99096328]
[1764884191545,8.6,139.65,139.62,0.71]
[1764884191755,115.2209082,139.66,139.62,7.87205351]
[1764884191951,103.42,139.66,139.63,0.71]
[1764884192656,110.58048509,139.66,139.63,0.71]
[1764884192867,110.58048509,139.66,139.63,7.87177703]
[1764884193059,110.58048509,139.66,139.63,7.16177703]
[1764884193264,110.58048509,139.66,139.64,0.71]
[1764884194071,110.58048509,139.66,139.62,10.86301292]
[1764884194272,110.58048509,139.66,139.63,0.71]
[1764884194570,0.72,139.65,139.61,10.15355895]
[1764884194765,113.57144837,139.66,139.62,0.71]
[1764884195171,112.85144837,139.66,139.62,0.71]
[1764884195353,0.72,139.65,139.62,0.71]
[1764884195754,0.72,139.65,139.62,7.87222766]
[1764884197452,0.72,139.65,139.62,7.16222766]
[1764884197778,0.72,139.65,139.63,0.71]
[1764884198159,10.87174902,139.65,139.62,7.16222766]
[1764884198367,10.87174902,139.65,139.62,7.87222766]
[1764884198758,10.15174902,139.65,139.63,0.71]
[1764884198960,10.87174902,139.65,139.63,0.71]
[1764884199167,10.87174902,139.65,139.62,7.16222766]
[1764884199377,10.87174902,139.65,139.62,7.87222766]
[1764884199578,103.42,139.66,139.63,0.71]
[1764884199775,102.7,139.66,139.63,0.71]
[1764884199959,113.57131724,139.66,139.63,0.71]
[1764884202261,110.58035396,139.66,139.63,0.71]
[1764884203266,110.57035396,139.66,139.63,0.71]
[1764884203665,0.71,139.65,139.63,7.8717781]
[1764884206690,110.57035396,139.66,139.63,7.8717781]
[1764884206994,109.86035396,139.66,139.63,7.8717781]
[1764884207182,0.71,139.65,139.63,7.8717781]
[1764884208972,102.7,139.66,139.64,0.72]
[1764884209924,14.18707765,139.65,139.6,7.16298689]
[1764884210123,4.66713273,139.63,139.6,7.16298689]
[1764884210326,4.66713273,139.63,139.6,7.88298689]
[1764884210486,5.37713273,139.63,139.6,7.88298689]
[1764884212224,7.88,139.64,139.61,0.72]
[1764884212689,8.59,139.64,139.61,0.72]
[1764884212885,0.71,139.63,139.6,25.07129634]
[1764884213115,8.59,139.64,139.61,0.72]
[1764884214515,8.59,139.64,139.61,7.88262329]
[1764884214688,13.25713273,139.64,139.61,7.88262329]
[1764884215099,8.59,139.64,139.61,7.88262329]
[1764884215310,8.59,139.64,139.61,12.54975602]
[1764884215985,0.71,139.64,139.61,12.54975602]
[1764884216612,7.88,139.65,139.62,5.38713273]
[1764884216997,7.88,139.65,139.62,4.66713273]
[1764884217209,7.88,139.65,139.62,5.38713273]
[1764884217523,8.59,139.65,139.63,0.72]
[1764884218230,7.88,139.65,139.62,11.82936005]
[1764884218406,0.71,139.64,139.62,11.82936005]
[1764884221826,0.71,139.64,139.62,12.54936005]
[1764884222510,0.71,139.64,139.62,11.82936005]
[1764884222820,0.71,139.64,139.62,7.16222732]
[1764884223016,12.53864585,139.64,139.6,7.88]
[1764884223222,12.53864585,139.64,139.6,7.16306439]
[1764884223410,0.71,139.63,139.6,7.16306439]
[1764884224397,7.8718566,139.63,139.6,7.16306439]
[1764884224816,0.71,139.62,139.59,20.43092817]
[1764884225028,0.71,139.62,139.59,12.55092817]
[1764884225700,0.71,139.62,139.59,7.88379544]
[1764884225904,0.71,139.62,139.59,12.55092817]
[1764884227020,0.71,139.62,139.59,11.83092817]
[1764884227199,7.8718566,139.63,139.6,0.72]
[1764884228630,102.7,139.64,139.61,4.66713273]
[1764884228927,0.71,139.66,139.62,4.66713273]
[1764884229127,5.48073117,139.66,139.62,4.66713273]
[1764884229330,109.85922699,139.68,139.65,4.66713273]
[1764884229634,110.56922699,139.68,139.65,4.66713273]
[1764884229810,0.71,139.67,139.64,5.38713273]
[1764884230137,0.71,139.67,139.65,4.66713273]
[1764884230637,0.71,139.67,139.65,11.82788653]
[1764884231004,110.56922699,139.68,139.65,11.82788653]
[1764884231204,110.56922699,139.68,139.65,5.38713273]
[1764884231431,109.85922699,139.68,139.65,4.66713273]
[1764884231618,110.56922699,139.68,139.65,4.66713273]
[1764884232635,110.56922699,139.68,139.65,5.38713273]
[1764884235538,109.85922699,139.68,139.65,5.38713273]
[1764884235737,0.67,139.67,139.65,5.38713273]
[1764884236438,102.7,139.68,139.66,0.67]
[1764884236625,102.7,139.68,139.67,4.66713273]
[1764884237332,102.7,139.68,139.67,5.33713273]
[1764884237634,102.7,139.68,139.67,4.66713273]
[1764884237928,102.7,139.68,139.67,5.33713273]
[1764884238740,102.7,139.68,139.67,4.66713273]
[1764884238942,102.7,139.68,139.67,5.33713273]
[1764884239246,102.7,139.68,139.67,4.66713273]
[1764884239418,102.7,139.68,139.66,12.49722445]
[1764884240642,0.67,139.69,139.66,12.49722445]
[1764884242231,0.67,139.69,139.67,4.66713273]
[1764884242750,0.2,139.7,139.68,5.33713273]
[1764884243050,0.2,139.7,139.68,0.67]
[1764884243223,0.2,139.7,139.69,4.66713273]
[1764884244225,0.2,139.7,139.69,5.33713273]
[1764884245924,0.2,139.7,139.69,4.66713273]
[1764884246435,8.02826719,139.7,139.67,12.49666194]
[1764884246763,8.02826719,139.7,139.66,7.83016678]
[1764884246921,0.67,139.69,139.66,7.83016678]
[1764884247128,0.67,139.69,139.66,12.49729951]
[1764884248149,0.2,139.7,139.68,4.66713273]
[1764884249232,0.87,139.7,139.68,4.66713273]
[1764884249756,0.87,139.7,139.67,12.49659642]
[1764884253366,0.2,139.7,139.69,4.66713273]
[1764884253852,0.2,139.7,139.69,21.64599673]
[1764884255230,0.2,139.7,139.69,28.80470529]
[1764884261263,0.2,139.7,139.69,31.66952176]
[1764884261437,0.2,139.71,139.69,31.66952176]
[1764884261634,0.2,139.73,139.72,16.308864]
[1764884261837,0.2,139.73,139.72,21.64599673]
[1764884262467,0.2,139.73,139.72,3.65163576]
[1764884262640,0.2,139.73,139.72,30.099307]
[1764884263157,0.2,139.73,139.72,32.96330299]
[1764884264041,0.2,139.75,139.72,32.96330299]
[1764884264042,0.2,139.75,139.72,58.7362317]
[1764884264243,0.2,139.75,139.74,19.29049976]
[1764884264448,0.2,139.75,139.74,27.17049976]
[1764884264654,0.2,139.75,139.74,35.02664689]
[1764884264852,1e-08,139.75,139.74,37.89043783]
[1764884268071,1e-08,139.75,139.74,30.01043783]
[1764884268271,1e-08,139.75,139.74,46.70038275]
[1764884270771,1e-08,139.76,139.74,46.00038275]
[1764884271074,1e-08,139.76,139.75,3.68163576]
[1764884271872,1e-08,139.76,139.75,6.54481173]
[1764884272372,1e-08,139.76,139.75,3.56317597]
[1764884272689,1e-08,139.76,139.75,2.98163576]
[1764884272851,0.68000001,139.76,139.75,10.13727082]
[1764884273176,0.2,139.77,139.75,10.13727082]
[1764884273385,0.2,139.77,139.76,2.98163576]
[1764884274061,0.2,139.77,139.76,10.86163576]
[1764884274784,0.2,139.77,139.76,18.01675882]
[1764884277587,0.51,139.77,139.75,7.155418]
[1764884277759,0.51,139.77,139.76,2.98163576]
[1764884278451,0.2,139.77,139.76,2.98163576]
[1764884278854,0.51,139.77,139.76,2.98163576]
[1764884279181,0.2,139.77,139.76,2.98163576]
[1764884279359,0.2,139.77,139.76,10.13675882]
[1764884281566,0.2,139.77,139.76,18.71675882]
[1764884283758,0.2,139.77,139.76,35.02562282]
[1764884284252,1e-08,139.77,139.76,35.02562282]
[1764884284450,1e-08,139.77,139.76,37.88859386]
[1764884285056,0.2,139.78,139.76,37.88859386]
[1764884285258,0.2,139.78,139.77,3.68163576]
[1764884286494,0.2,139.78,139.77,10.8362469]
[1764884287579,0.2,139.78,139.77,18.0162469]
[1764884291081,0.88,139.78,139.77,18.0162469]
[1764884291267,0.88,139.78,139.77,10.1362469]
[1764884291778,0.2,139.78,139.77,10.1362469]
[1764884294294,0.2,139.78,139.77,10.8162469]
[1764884298386,0.2,139.78,139.77,18.6962469]
[1764884301189,0.2,139.79,139.78,22.27213552]
[1764884301371,0.2,139.79,139.78,22.95213552]
[1764884301570,0.2,139.79,139.78,19.97049976]
[1764884303090,0.2,139.79,139.78,23.46296329]
[1764884303436,0.2,139.79,139.78,34.32459905]
[1764884304276,0.2,139.79,139.78,26.44459905]
[1764884304482,0.2,139.79,139.78,35.00459905]
[1764884311179,0.2,139.79,139.78,26.44459905]
[1764884311402,0.86,139.79,139.77,7.15442574]
[1764884311894,0.66,139.78,139.77,10.1360615]
[1764884312092,0.86,139.79,139.77,10.1360615]
[1764884312396,0.2,139.79,139.78,10.13573505]
[1764884312790,0.86,139.79,139.78,10.13573505]
[1764884312992,0.86,139.79,139.78,7.15409929]
[1764884314000,0.86,139.79,139.76,2.98163576]
[1764884314203,0.86,139.79,139.75,10.86163576]
[1764884314204,0.66,139.78,139.75,10.86163576]
[1764884315798,0.66,139.78,139.76,7.15480781]
[1764884318107,3.64163576,139.78,139.75,15.0354257]
[1764884318308,10.79587554,139.78,139.75,7.1554257]
[1764884318486,0.66,139.77,139.75,7.1554257]
[1764884319013,0.86,139.79,139.75,18.69702532]
[1764884319390,0.66,139.78,139.75,36.58611297]
[1764884319791,0.66,139.78,139.75,33.60447721]
[1764884320494,0.66,139.78,139.75,36.58611297]
[1764884321615,0.2,139.79,139.75,36.58611297]
[1764884321790,0.86,139.79,139.75,36.58611297]
[1764884322197,0.2,139.79,139.75,36.58611297]
[1764884322399,0.86,139.79,139.75,36.58611297]
[1764884322596,0.2,139.79,139.75,36.58611297]
[1764884322809,0.66,139.78,139.75,36.58611297]
[1764884324014,0.2,139.79,139.76,0.69]
[1764884324420,0.2,139.79,139.77,11.81179523]
[1764884324917,0.2,139.79,139.78,0.69]
[1764884325104,0.2,139.79,139.78,5.34718409]
[1764884326201,0.2,139.79,139.78,4.65718409]
[1764884326493,0.2,139.79,139.77,20.38179523]
[1764884330117,0.2,139.79,139.77,19.69179523]
[1764884330326,0.2,139.79,139.77,20.38179523]
[1764884330617,0.2,139.79,139.77,15.72461114]
[1764884331310,0.2,139.79,139.77,15.03461114]
[1764884331506,0.2,139.79,139.77,15.72461114]
[1764884332214,0.87,139.79,139.76,7.15489478]
[1764884332401,12.68087856,139.79,139.76,7.15489478]
[1764884332606,0.67,139.78,139.76,7.15489478]
[1764884335220,0.67,139.78,139.75,15.03555177]
[1764884336629,0.67,139.78,139.75,15.72555177]
[1764884337433,0.67,139.78,139.75,20.38273586]
[1764884339434,0.67,139.78,139.75,12.50273586]
[1764884340530,4.85718409,139.79,139.77,4.65718409]
[1764884340531,0.2,139.79,139.77,4.65718409]
[1764884341035,0.2,139.79,139.78,5.34718409]
[1764884342237,0.2,139.79,139.78,12.50128338]
[1764884342536,0.2,139.79,139.78,20.38128338]
[1764884342713,0.2,139.79,139.78,30.0612283]
[1764884344037,0.2,139.83,139.81,16.308864]
[1764884344332,0.2,139.84,139.82,19.68923672]
[1764884344641,0.2,139.84,139.83,4.65718409]
[1764884344817,0.2,139.84,139.83,5.34718409]
[1764884345422,0.2,139.84,139.83,21.65604809]
[1764884345631,0.2,139.84,139.83,12.49872524]
[1764884346939,0.2,139.84,139.83,34.47909124]
[1764884347141,0.2,139.84,139.83,12.49872524]
[1764884348135,0.2,139.84,139.83,7.84154115]
[1764884348336,0.2,139.84,139.83,12.49872524]
[1764884349943,1e-08,139.84,139.83,12.49872524]
[1764884350117,0.2,139.85,139.83,12.49872524]
[1764884350118,0.2,139.87,139.86,16.308864]
[1764884350444,0.2,139.87,139.86,34.19323218]
[1764884350821,0.2,139.91,139.86,37.05436017]
[1764884351137,0.2,139.91,139.9,4.65718409]
[1764884351438,0.2,139.91,139.9,28.84604809]
[1764884351640,0.2,139.91,139.9,29.53604809]
[1764884351847,0.2,139.91,139.9,32.39635771]
[1764884352045,0.2,139.91,139.9,39.54432054]
[1764884354330,0.2,139.91,139.9,31.66432054]
[1764884354530,0.2,139.91,139.9,39.52432054]
[1764884355322,0.2,139.91,139.9,30.97432054]
[1764884355524,0.2,139.91,139.9,35.97401092]
[1764884356240,0.2,139.91,139.9,31.31682683]
[1764884356545,0.2,139.91,139.9,35.97401092]
[1764884357651,0.2,139.91,139.9,28.11401092]
[1764884357851,0.2,139.91,139.9,35.97401092]
[1764884358051,0.92,139.91,139.89,14.66619446]
[1764884358353,0.92,139.91,139.9,7.14796283]
[1764884359347,0.92,139.91,139.88,7.1486857]
[1764884359522,0.72,139.9,139.89,7.1484738]
[1764884359849,0.92,139.91,139.89,7.1484738]
[1764884362751,0.92,139.91,139.89,7.1484738]
[1764884363331,0.92,139.91,139.88,11.80593823]
[1764884363651,0.72,139.9,139.87,11.80639215]
[1764884363831,0.72,139.9,139.87,15.00920806]
[1764884366961,12.00473861,139.91,139.87,20.36639215]
[1764884366962,0.2,139.91,139.87,20.36639215]
[1764884367160,0.2,139.91,139.88,5.35718409]
[1764884367672,0.92,139.91,139.87,38.24013205]
[1764884370071,0.72,139.9,139.87,38.24013205]
[1764884370275,0.72,139.9,139.87,15.00920806]
[1764884371387,5.37718409,139.9,139.87,15.00920806]
[1764884373067,11.80520055,139.9,139.87,15.00920806]
[1764884373262,0.72,139.89,139.87,15.00920806]
[1764884374265,7.86801646,139.9,139.87,19.66639215]
[1764884376171,0.72,139.9,139.88,4.65718409]
[1764884377469,0.2,139.91,139.89,5.35718409]
[1764884377671,0.92,139.91,139.9,4.65718409]
[1764884379865,0.92,139.91,139.89,4.65718409]
[1764884381444,0.2,139.91,139.9,4.65718409]
[1764884382265,8.06756897,139.91,139.88,4.65718409]
[1764884382770,0.72,139.9,139.88,4.65718409]
[1764884383375,8.02756897,139.91,139.88,11.80615817]
[1764884385278,8.02756897,139.91,139.89,4.65718409]
[1764884386176,8.02756897,139.91,139.88,11.80615817]
[1764884386389,8.02756897,139.91,139.88,10.1251164]
[1764884387160,0.68,139.9,139.88,2.97614232]
[1764884390062,8.02756897,139.91,139.88,2.97614232]
[1764884390680,0.68,139.9,139.88,2.97614232]
[1764884390881,7.34756897,139.91,139.87,7.79928459]
[1764884391178,0.68,139.9,139.88,2.97614232]
[1764884391784,0.68,139.9,139.86,7.14990239]
[1764884391963,11.78608724,139.89,139.84,7.15059014]
[1764884392165,11.78608724,139.89,139.84,10.12673246]
[1764884392360,0.68,139.88,139.84,10.12673246]
[1764884392564,0.68,139.88,139.84,10.77673246]
[1764884392778,7.82925765,139.88,139.84,10.77673246]
[1764884393181,7.14925765,139.88,139.84,10.77673246]
[1764884393373,0.68,139.87,139.84,10.77673246]
[1764884395165,15.68817434,139.9,139.86,2.97614232]
[1764884395362,15.00817434,139.9,139.86,2.97614232]
[1764884395561,0.68,139.89,139.86,3.62614232]
[1764884396192,0.68,139.89,139.86,10.77596791]
[1764884396564,0.68,139.89,139.87,2.97614232]
[1764884396965,0.68,139.89,139.86,7.79982559]
[1764884396966,0.68,139.89,139.86,10.77596791]
[1764884397687,7.14817434,139.9,139.87,2.97614232]
[1764884397688,7.82817434,139.9,139.87,2.97614232]
[1764884398285,7.82817434,139.9,139.87,10.125638]
[1764884398875,7.82817434,139.9,139.87,7.14949568]
[1764884399578,0.68,139.9,139.87,7.79949568]
[1764884399773,0.68,139.9,139.87,10.775638]
[1764884399970,7.34769378,139.91,139.88,0.65]
[1764884400171,0.2,139.91,139.9,2.97614232]
[1764884400494,0.2,139.91,139.89,2.97614232]
[1764884400890,0.2,139.91,139.9,0.65]
[1764884401094,0.2,139.91,139.9,3.62614232]
[1764884401782,0.2,139.91,139.9,10.77410515]
[1764884403889,0.2,139.91,139.9,7.14796283]
[1764884404194,0.2,139.91,139.9,10.77410515]
[1764884405593,0.2,139.91,139.9,10.12410515]
[1764884405791,0.2,139.91,139.9,2.97614232]
[1764884406001,0.2,139.91,139.89,10.12446747]
[1764884406497,0.88,139.91,139.88,10.1249128]
[1764884407394,0.68,139.9,139.88,2.97614232]
[1764884407902,7.34754033,139.91,139.87,18.63553529]
[1764884407903,8.02754033,139.91,139.87,18.63553529]
[1764884408094,7.34754033,139.91,139.87,18.63553529]
[1764884408278,0.68,139.9,139.87,18.63553529]
[1764884408672,8.02754033,139.91,139.87,18.63553529]
[1764884409008,0.68,139.9,139.87,18.63553529]
[1764884409697,0.68,139.9,139.87,15.65939297]
[1764884409883,0.68,139.9,139.87,18.63553529]
[1764884411299,8.02754033,139.91,139.87,18.63553529]
[1764884411902,7.34754033,139.91,139.87,18.63553529]
[1764884412099,10.80413483,139.9,139.87,7.86]
[1764884412509,0.68,139.9,139.87,18.63554215]
[1764884413378,0.68,139.9,139.87,17.98554215]
[1764884413680,2.97614232,139.89,139.85,7.15046284]
[1764884413885,2.97614232,139.88,139.85,7.15046284]
[1764884414204,2.97614232,139.88,139.85,7.84046284]
[1764884414406,2.97614232,139.86,139.82,0.69]
[1764884414598,25.02155375,139.88,139.83,7.84111285]
[1764884414800,3.63614232,139.87,139.83,7.84111285]
[1764884415392,3.63614232,139.87,139.83,7.15111285]
[1764884415601,3.63614232,139.87,139.84,7.84084587]
[1764884417215,10.7858041,139.87,139.84,0.69]
[1764884417892,2.97614232,139.86,139.82,7.15197542]
[1764884418101,2.97614232,139.86,139.75,75.0]
[1764884418102,2.97614232,139.84,139.79,2.97614232]
[1764884418284,10.12720163,139.84,139.8,7.152761]
[1764884418607,10.78720163,139.84,139.8,7.842761]
[1764884419711,10.78720163,139.84,139.81,0.69]
[1764884419910,10.78720163,139.84,139.81,7.84255083]
[1764884420912,2.97614232,139.83,139.8,7.15307582]
[1764884421112,3.63614232,139.83,139.8,7.84307582]
[1764884421502,2.97614232,139.83,139.8,7.84307582]
[1764884422020,10.12795632,139.83,139.79,7.15346004]
[1764884422195,2.97614232,139.8,139.77,0.69]
[1764884422393,2.97614232,139.8,139.76,7.86]
[1764884422394,2.97614232,139.81,139.78,7.84375309]
[1764884422690,25.03066689,139.83,139.79,7.15348583]
[1764884422691,7.811814,139.83,139.79,7.15348583]
[1764884423000,3.63614232,139.82,139.79,7.84348583]
[1764884423415,3.63614232,139.82,139.79,0.69]
[1764884423610,3.63614232,139.82,139.78,7.8439056]
[1764884424001,2.97614232,139.81,139.78,7.8439056]
[1764884424197,10.78874015,139.81,139.77,15.01443422]
[1764884424500,10.78874015,139.81,139.77,15.70443422]
[1764884424705,10.78874015,139.81,139.77,15.01443422]
[1764884424887,10.78874015,139.81,139.78,0.69]
[1764884425306,10.12874015,139.81,139.78,0.69]
[1764884425710,10.78874015,139.81,139.78,0.69]
[1764884426194,10.12874015,139.81,139.78,0.69]
[1764884428821,10.12874015,139.81,139.78,7.8440963]
[1764884429800,102.7,139.83,139.79,0.69]
[1764884430003,102.7,139.83,139.79,3.66614232]
[1764884430422,112.82780849,139.83,139.8,0.69]
[1764884433209,2.97614232,139.82,139.8,0.69]
[1764884433905,2.97614232,139.82,139.8,7.84300061]
[1764884434613,105.67614232,139.83,139.81,0.69]
[1764884435414,105.67614232,139.83,139.8,7.15300061]
[1764884435620,106.33614232,139.83,139.8,7.84300061]
[1764884436234,105.67614232,139.83,139.8,7.84300061]
[1764884438799,2.97614232,139.82,139.79,7.15342815]
[1764884438999,2.97614232,139.82,139.79,7.84342815]
[1764884439522,2.97614232,139.82,139.8,0.69]
[1764884442022,10.12824559,139.82,139.8,0.69]
[1764884443131,3.63614232,139.81,139.78,7.8238561]
[1764884443705,7.15210327,139.82,139.79,0.67]
[1764884445803,7.15210327,139.82,139.79,7.82354395]
[1764884446350,112.82788513,139.83,139.8,0.67]
[1764884446825,113.48788513,139.83,139.8,0.67]
[1764884447030,2.97614232,139.82,139.79,7.15354395]
[1764884447205,2.97614232,139.82,139.79,7.82354395]
[1764884447401,3.63614232,139.81,139.76,3.64614232]
[1764884447599,2.97614232,139.8,139.76,15.70499783]
[1764884447803,2.97614232,139.8,139.77,7.8244869]
[1764884448210,2.97614232,139.8,139.78,0.67]
[1764884448416,12.47099635,139.81,139.78,0.67]
[1764884448811,4.65805673,139.81,139.78,7.8240287]
[1764884450429,4.65805673,139.81,139.79,0.67]
[1764884453131,5.31805673,139.81,139.78,7.82379849]
[1764884453833,12.47063096,139.81,139.78,7.82379849]
[1764884454329,12.47063096,139.81,139.76,30.42538047]
[1764884454330,11.81063096,139.81,139.77,7.15461114]
[1764884454542,4.65805673,139.8,139.78,0.67]
[1764884455128,12.47063096,139.81,139.78,0.67]
[1764884455441,12.47063096,139.81,139.78,7.82396914]
[1764884456128,5.31805673,139.81,139.78,7.82396914]
[1764884456531,4.65805673,139.81,139.78,7.15396914]
[1764884456726,4.65805673,139.81,139.79,0.67]
[1764884457316,4.65805673,139.81,139.78,7.82396914]
[1764884458312,5.31805673,139.81,139.78,7.82396914]
[1764884459026,4.65805673,139.81,139.78,7.82396914]
[1764884460111,5.31805673,139.81,139.78,7.82396914]
[1764884460816,4.65805673,139.81,139.78,7.15396914]
[1764884461012,4.65805673,139.82,139.79,7.82343035]
[1764884461425,4.65805673,139.82,139.8,0.67]
[1764884462242,4.65805673,139.83,139.8,0.67]
[1764884462445,4.65805673,139.84,139.8,0.67]
[1764884462747,4.65805673,139.83,139.8,0.67]
[1764884462949,4.65805673,139.83,139.78,15.03387469]
[1764884462950,4.65805673,139.81,139.78,15.03387469]
[1764884463133,4.65805673,139.81,139.79,0.67]
[1764884463336,4.65805673,139.81,139.78,7.82387469]
[1764884463950,4.65805673,139.81,139.79,0.67]
[1764884464247,4.65805673,139.81,139.78,7.15387469]
[1764884464448,4.65805673,139.81,139.79,0.67]
[1764884465732,7.81236102,139.82,139.79,0.67]
[1764884465733,4.65805673,139.8,139.79,0.67]
[1764884465939,4.65805673,139.81,139.79,0.67]
[1764884467049,12.47041775,139.82,139.79,0.67]
[1764884467346,11.81041775,139.82,139.79,0.67]
[1764884468129,12.47041775,139.82,139.79,0.67]
[1764884469145,7.15236102,139.82,139.79,0.67]
[1764884469352,11.81041775,139.82,139.79,0.67]
[1764884471354,4.65805673,139.82,139.79,7.82346594]
[1764884471645,9.44878973,139.82,139.79,7.82346594]
[1764884472447,9.44878973,139.82,139.8,0.67]
[1764884472744,9.44878973,139.82,139.79,7.15346594]
[1764884472949,10.12878973,139.82,139.79,7.81346594]
[1764884473352,102.7,139.83,139.8,7.81301294]
[1764884473828,102.7,139.83,139.81,0.66]
[1764884474943,107.35805673,139.83,139.81,0.66]
[1764884475129,107.35805673,139.83,139.81,7.81250639]
[1764884476751,108.03805673,139.83,139.8,7.81307582]
[1764884477364,107.35805673,139.83,139.8,7.81307582]
[1764884477537,107.35805673,139.83,139.81,0.66]
[1764884477849,107.35805673,139.83,139.81,7.81250843]
[1764884478034,5.33805673,139.83,139.81,7.15250843]
[1764884478671,11.80932854,139.84,139.79,29.69561306]
[1764884478842,109.85028063,139.86,139.82,0.66]
[1764884479046,4.7900163,139.85,139.82,0.66]
[1764884479250,10.12807303,139.85,139.82,0.66]
[1764884480062,17.27876047,139.85,139.82,0.66]
[1764884480265,4.65805673,139.83,139.8,0.66]
[1764884480561,4.65805673,139.83,139.81,0.66]
[1764884481855,5.33805673,139.84,139.81,0.66]
[1764884482061,11.80942401,139.84,139.81,0.66]
[1764884484366,12.48942401,139.84,139.81,0.66]
[1764884486957,4.65805673,139.82,139.76,7.15479619]
[1764884487162,4.65805673,139.79,139.77,0.66]
[1764884487961,4.65805673,139.79,139.76,0.66]
[1764884488264,4.65805673,139.79,139.77,0.66]
[1764884488970,11.81039924,139.82,139.77,12.47252828]
[1764884489344,4.65805673,139.81,139.78,0.66]
[1764884490065,25.49988984,139.84,139.78,5.31805673]
[1764884490066,4.65805673,139.83,139.78,5.31805673]
[1764884490365,9.44629519,139.82,139.78,8.54]
[1764884490568,4.65805673,139.82,139.79,0.66]
[1764884490738,4.65805673,139.82,139.79,7.81318505]
[1764884491083,9.44619324,139.82,139.79,7.81318505]
[1764884491254,4.65805673,139.82,139.8,0.66]
[1764884492164,9.44617541,139.82,139.8,0.66]
[1764884492354,4.65805673,139.82,139.8,0.66]
[1764884493248,7.88,139.84,139.8,7.81297297]
[1764884493568,18.96323405,139.85,139.8,12.4710297]
[1764884493769,18.96323405,139.85,139.81,8.54]
[1764884493770,4.65805673,139.85,139.81,8.54]
[1764884494064,16.5975987,139.85,139.82,0.66]
[1764884494267,11.80868833,139.85,139.82,0.66]
[1764884496370,7.1506316,139.85,139.82,0.66]